[Event "SixDays Budapest IM-B 09-2024"]
[Site "Budapest"]
[Date "2024.09.25"]
[Round "3.3"]
[White "Pribelszky, Bence Daniel"]
[Black "Nissinen, Niilo Man"]
[Result "1-0"]
[ECO "A06"]
[WhiteElo "2408"]
[BlackElo "2159"]
[Annotator "TA"]
[PlyCount "81"]
[EventDate "2024.09.24"]
[EventType "tourn"]
[EventCountry "HUN"]
[SourceTitle "playchess.com"]
[Source "ChessBase"]
[SourceQuality "1"]
[TimeControl "5400+30"]

{[%evp 9,81,8,-5,-3,10,11,31,12,37,19,39,21,25,12,16,16,29,0,17,5,27,3,21,26,29,21,42,31,79,31,59,59,68,20,89,87,89,88,128,117,131,79,127,120,133,74,108,148,169,147,157,154,218,127,199,204,241,252,336,347,356,347,386,331,652,628,639,637,781,695,1331,1297,1435,1229]} 1. Nf3 {[%emt 0:00:03]} d5 {[%emt 0:00:10]} 2. b3 {[%emt 0:00:09]} Nf6 {[%emt 0:01:40]} 3. Bb2 {[%emt 0:00:06]} e6 {[%emt 0:01:45]} 4. c4 {[%emt 0:00:34]} b6 {[%emt 0:02:23]} 5. cxd5 {[%emt 0:01:58]} exd5 {[%emt 0:00:30]} 6. g3 {[%emt 0:00:40]} Nbd7 {[%emt 0:04:27]} 7. Bg2 {[%emt 0:00:07]} Bd6 {[%emt 0:00:51]} 8. Nc3 {[%emt 0:02:09] White is slightly better.} Bb7 {[%emt 0:05:29]} 9. Rc1 {[%emt 0:01:54]} a6 {[%emt 0:00:34][%cal Od5d4] Wards off Nb5} 10. O-O {[%emt 0:00:16]} O-O {[%emt 0:02:46]} 11. Re1 {[%emt 0:03:24]} Re8 {[%emt 0:01:46]} 12. d3 {[%emt 0:02:28][%cal Oe2e4,Bd2d3,Bd3d4][%mdl 32]} b5 {[%emt 0:13:24]} 13. d4 {[%emt 0:03:35]} Qe7 {[%emt 0:03:05]} 14. e3 {[%emt 0:00:57]} Rad8 {[%emt 0:02:19]} 15. a4 {[%emt 0:03:57]} b4 {[%emt 0:06:39]} 16. Ne2 {[%emt 0:00:29]} Ne4 {[%emt 0:01:10]} 17. Nf4 {[%emt 0:01:54]} Nf8 {[%emt 0:09:39]} 18. Nd3 {[%emt 0:01:33]} Ng6 {[%emt 0:07:58]} (18... f6 $14 {was preferrable.}) 19. Re2 {[%emt 0:12:13]} (19. Qc2 $16) 19... Bc8 {[%emt 0:02:20]} 20. Rec2 {[%emt 0:02:13]} f6 {[%emt 0:06:16] Against Nfe5} 21. a5 {[%emt 0:05:14]} (21. Nd2 $14 {might be stronger.}) 21... h5 {[%emt 0:05:42]} (21... Bg4 $11 {remains equal.}) 22. Nd2 {[%emt 0:02:51]} Bg4 {[%emt 0:01:08]} 23. Qe1 {[%emt 0:01:58] Threatens to win with f3.} Bf5 {[%emt 0:05:15][%cal Oe4g3]} 24. Qe2 $1 {[%emt 0:07:42]} Bg4 {[%emt 0:02:36]} 25. Qf1 {[%emt 0:01:14]} ({White should play} 25. f3 Nc3 (25... Nxd2 $2 26. fxg4 Ne4 27. gxh5 $18) 26. Bxc3) 25... Bf5 {[%emt 0:02:38]} (25... Nxd2 $142 26. Rxd2 (26. Bxd5+ Kh7 $18) 26... Qf7) 26. Nxe4 $16 {[%emt 0:03:59]} Bxe4 {[%emt 0:01:13] [#]} 27. Rc6 {[%emt 0:00:16]} ({White should try} 27. Nc5 $1 {[%cal Rc5e4]}) 27... h4 {[%emt 0:01:44]} 28. Nc5 {[%emt 0:00:57] Prevents Qd7.} hxg3 {[%emt 0:03:16]} 29. hxg3 {[%emt 0:00:28]} Bxg2 {[%emt 0:01:28]} 30. Qxg2 {[%emt 0:00:19]} Qf7 {[%emt 0:00:42] [#]} (30... Bxc5 $16 {might work better.} 31. R1xc5 Qd7) 31. Nxa6 {[%emt 0:06:18]} ({Resist} 31. Rxa6 $6 Bxc5 32. dxc5 (32. Rxc5 Nf8 $16) 32... Ne5 $16) (31. Nb7 $1 $18) 31... Re7 {[%emt 0:02:30]} (31... Rc8 $16 {was worth a try.}) 32. Nc5 $18 {[%emt 0:03:45]} Ra8 {[%emt 0:01:32]} 33. Nb7 {[%emt 0:01:14]} Rd7 {[%emt 0:00:39]} 34. Nxd6 {[%emt 0:00:24]} cxd6 {[%emt 0:00:05]} 35. Rc8+ {[%emt 0:01:45]} Rd8 {[%emt 0:00:06]} 36. Qh3 {[%emt 0:01:33] Strongly threatening Rxa8.} Ne7 $2 {[%emt 0:00:32]} (36... Nf8 37. Rxd8 Rxd8) 37. Rxd8+ {[%emt 0:00:56] White is clearly winning.} Rxd8 {[%emt 0:00:02]} 38. Rc7 {[%emt 0:00:04]} Kf8 {[%emt 0:02:38]} 39. a6 {[%emt 0:03:22][%cal Ba5a6,Ba6a7][%mdl 32]} Ra8 {[%emt 0:00:31]} 40. a7 {[%emt 0:00:09]} Qg6 {[%emt 0:00:31]} 41. Bc1 {[%emt 0:00:32] Weighted Error Value: White=0.15 (very precise) /Black=0.46.  Mistake:       	White=5     	Black=6      Inaccurate:     	White=1     	Black=4      OK:         	White=9     	Black=4      Best:        	White=3     	---        Strong:       	White=1     	---} 1-0

[Event "SixDays Budapest IM-B 09-2024"]
[Site "Budapest"]
[Date "2024.09.25"]
[Round "3.4"]
[White "Tippa, Aswath Srisai"]
[Black "Skytte, Rasmus"]
[Result "1-0"]
[ECO "B06"]
[WhiteElo "1648"]
[BlackElo "2348"]
[Annotator "RC"]
[PlyCount "63"]
[EventDate "2024.09.24"]
[EventType "tourn"]
[EventCountry "HUN"]
[SourceTitle "playchess.com"]
[Source "ChessBase"]
[SourceQuality "1"]
[TimeControl "5400+30"]

1. e4 {[%emt 0:03:38]} g6 {[%emt 0:00:08]} 2. d4 {[%emt 0:00:12]} Bg7 {[%emt 0:00:09]} 3. Nc3 {[%emt 0:00:18]} d5 {[%emt 0:01:37]} 4. exd5 {[%emt 0:00:13]} Nf6 {[%emt 0:00:06]} 5. Bc4 {[%emt 0:00:11]} Nbd7 {[%emt 0:00:50]} 6. Nf3 {[%emt 0:00:23]} O-O {[%emt 0:00:22]} 7. O-O {[%emt 0:00:18]} Nb6 {[%emt 0:00:55]} 8. Bb3 {[%emt 0:00:10]} a5 {[%emt 0:01:08]} 9. a4 {[%emt 0:00:10]} Nbxd5 {[%emt 0:01:25]} 10. Nxd5 {[%emt 0:00:13]} Nxd5 {[%emt 0:00:10]} 11. Ne5 {[%emt 0:00:09]} c6 {[%emt 0:01:02]} 12. c3 {[%emt 0:00:38]} Qc7 {[%emt 0:05:08]} 13. Re1 {[%emt 0:00:42]} Bf5 {[%emt 0:03:15]} 14. Qf3 {[%emt 0:01:44]} Rad8 {[%emt 0:00:43]} 15. h3 {[%emt 0:05:40]} Be6 {[%emt 0:09:04]} 16. Nd3 {[%emt 0:03:23]} Bf5 {[%emt 0:02:40]} 17. Bg5 {[%emt 0:09:24]} Bxd3 {[%emt 0:01:31]} 18. Qxd3 {[%emt 0:00:11]} Rd7 {[%emt 0:00:46]} 19. Qf3 {[%emt 0:04:11]} e6 {[%emt 0:03:15]} 20. Re2 {[%emt 0:01:00]} b5 {[%emt 0:09:47]} 21. h4 {[%emt 0:02:16]} b4 {[%emt 0:09:52]} 22. h5 {[%emt 0:05:39]} bxc3 {[%emt 0:02:22]} 23. bxc3 {[%emt 0:00:10]} c5 {[%emt 0:03:37]} 24. h6 {[%emt 0:04:45]} Bh8 {[%emt 0:00:47]} 25. Rd1 {[%emt 0:10:35]} cxd4 {[%emt 0:02:28]} 26. cxd4 {[%emt 0:00:39]} Qd6 {[%emt 0:03:11]} 27. Rc2 {[%emt 0:03:39]} Qb4 {[%emt 0:13:19]} 28. Rc4 {[%emt 0:01:36]} Qb7 {[%emt 0:01:06]} 29. Rc5 {[%emt 0:00:49]} Rb8 {[%emt 0:03:00]} 30. Rxa5 {[%emt 0:02:06]} Nc7 {[%emt 0:07:36]} 31. Qxb7 {[%emt 0:00:17]} Rxb7 {[%emt 0:00:06]} 32. Rc1 {[%emt 0:00:08]} 1-0

[Event "SixDays Budapest IM-B 09-2024"]
[Site "Budapest"]
[Date "2024.09.25"]
[Round "3.5"]
[White "Rodgers, Jack"]
[Black "Goldbeck, Lars"]
[Result "0-1"]
[ECO "D61"]
[WhiteElo "2110"]
[BlackElo "2359"]
[Annotator "RC"]
[PlyCount "94"]
[EventDate "2024.09.24"]
[EventType "tourn"]
[EventCountry "HUN"]
[SourceTitle "playchess.com"]
[Source "ChessBase"]
[SourceQuality "1"]
[TimeControl "5400+30"]

1. d4 {[%emt 0:00:08]} d5 {[%emt 0:00:25]} 2. c4 {[%emt 0:00:11]} e6 {[%emt 0:00:06]} 3. Nc3 {[%emt 0:00:10]} Nf6 {[%emt 0:00:20]} 4. Nf3 {[%emt 0:00:23]} Nbd7 {[%emt 0:00:17]} 5. Bg5 {[%emt 0:00:32]} Be7 {[%emt 0:00:16]} 6. e3 {[%emt 0:00:20]} O-O {[%emt 0:00:16]} 7. Qc2 {[%emt 0:00:17]} a6 {[%emt 0:00:33]} 8. Rd1 {[%emt 0:00:19]} h6 {[%emt 0:04:40]} 9. Bh4 {[%emt 0:00:31]} dxc4 {[%emt 0:08:02]} 10. Bxc4 {[%emt 0:00:33]} b5 {[%emt 0:00:23]} 11. Be2 {[%emt 0:03:28]} Bb7 {[%emt 0:03:33]} 12. O-O {[%emt 0:02:54]} Rc8 {[%emt 0:06:18]} 13. Bxf6 {[%emt 0:24:38]} Bxf6 {[%emt 0:08:33]} 14. Ne4 {[%emt 0:05:29]} Bxe4 {[%emt 0:05:49]} 15. Qxe4 {[%emt 0:00:05]} c5 {[%emt 0:00:46]} 16. Bd3 {[%emt 0:05:39]} g6 {[%emt 0:02:51]} 17. Ne5 {[%emt 0:03:55]} c4 {[%emt 0:09:41]} 18. Bc2 {[%emt 0:08:05]} Bg7 {[%emt 0:08:21]} 19. f4 {[%emt 0:05:48]} Nf6 {[%emt 0:01:42]} 20. Qf3 {[%emt 0:02:36]} c3 {[%emt 0:01:09]} 21. b3 {[%emt 0:02:06]} Qa5 {[%emt 0:04:04]} 22. Ra1 {[%emt 0:02:06]} Qa3 {[%emt 0:05:00]} 23. h4 {[%emt 0:01:31]} Qe7 {[%emt 0:09:10]} 24. a3 {[%emt 0:03:57]} h5 {[%emt 0:03:21]} 25. g3 {[%emt 0:05:08]} Qd8 {[%emt 0:02:08]} 26. Rfd1 {[%emt 0:00:39]} Qd5 {[%emt 0:03:04]} 27. e4 {[%emt 0:01:03]} Qb7 {[%emt 0:00:10]} 28. Kg2 {[%emt 0:02:15]} a5 {[%emt 0:01:47]} 29. b4 {[%emt 0:05:14]} axb4 {[%emt 0:01:39]} 30. axb4 {[%emt 0:00:02]} Rfd8 {[%emt 0:00:57]} 31. Qe3 {[%emt 0:03:46]} Qe7 {[%emt 0:02:44]} 32. Ra6 {[%emt 0:01:38]} Qxb4 {[%emt 0:01:54]} 33. Qf2 {[%emt 0:06:42]} Ng4 {[%emt 0:02:30]} 34. Nxg4 {[%emt 0:00:24]} hxg4 {[%emt 0:00:00]} 35. d5 {[%emt 0:01:07]} exd5 {[%emt 0:00:53]} 36. exd5 {[%emt 0:00:53]} Qc4 {[%emt 0:01:03]} 37. d6 {[%emt 0:01:10]} b4 {[%emt 0:00:17]} 38. Rb6 {[%emt 0:00:25]} Rc6 {[%emt 0:01:57]} 39. d7 {[%emt 0:01:41]} Rc7 {[%emt 0:01:32]} 40. Qe1 {[%emt 0:00:48]} Bf8 {[%emt 0:00:47]} 41. Rb1 {[%emt 0:01:16]} Qd5+ {[%emt 0:01:04]} 42. Be4 {[%emt 0:00:43]} Qxd7 {[%emt 0:00:13]} 43. h5 {[%emt 0:00:43]} Qd2+ {[%emt 0:00:05]} 44. Kh1 {[%emt 0:00:22]} Qxe1+ {[%emt 0:00:16]} 45. Rxe1 {[%emt 0:00:05]} gxh5 {[%emt 0:01:02]} 46. Rc1 {[%emt 0:00:57]} c2 {[%emt 0:00:42]} 47. Bxc2 {[%emt 0:00:45]} Rdc8 {[%emt 0:00:10]} 0-1

[Event "SixDays Budapest IM-B 09-2024"]
[Site "Budapest"]
[Date "2024.09.26"]
[Round "4.1"]
[White "Nissinen, Niilo Man"]
[Black "Valkova, Angelika"]
[Result "1-0"]
[ECO "C42"]
[WhiteElo "2159"]
[BlackElo "2068"]
[Annotator "RC"]
[PlyCount "59"]
[EventDate "2024.09.24"]
[EventType "tourn"]
[EventCountry "HUN"]
[SourceTitle "playchess.com"]
[Source "ChessBase"]
[SourceQuality "1"]
[TimeControl "5400+30"]

1. e4 {[%emt 0:00:03]} e5 {[%emt 0:00:36]} 2. Nf3 {[%emt 0:00:17]} Nf6 {[%emt 0:00:06]} 3. Nc3 {[%emt 0:01:19]} Bb4 {[%emt 0:00:05]} 4. Nxe5 {[%emt 0:00:42]} O-O {[%emt 0:00:07]} 5. Nd3 {[%emt 0:01:07]} Bxc3 {[%emt 0:00:08]} 6. dxc3 {[%emt 0:00:55]} Nxe4 {[%emt 0:00:07]} 7. Be2 {[%emt 0:00:48]} Re8 {[%emt 0:00:50]} 8. O-O {[%emt 0:02:47]} d6 {[%emt 0:00:27]} 9. Re1 {[%emt 0:08:12]} Bf5 {[%emt 0:02:02]} 10. Nf4 {[%emt 0:02:44]} Nd7 {[%emt 0:04:04]} 11. Be3 {[%emt 0:11:29]} Ne5 {[%emt 0:02:26]} 12. h3 {[%emt 0:23:03]} Qh4 {[%emt 0:24:35]} 13. Qc1 {[%emt 0:06:50]} Rac8 {[%emt 0:07:25]} 14. Bd3 {[%emt 0:02:22]} g5 {[%emt 0:16:36]} 15. Nd5 {[%emt 0:01:36]} g4 {[%emt 0:00:17]} 16. Bxe4 Bxe4 {[%emt 0:00:06]} 17. Bg5 {[%emt 0:01:59]} Nf3+ 18. gxf3 Qxh3 {[%emt 0:00:38]} 19. Nf6+ {[%emt 0:02:23]} Kh8 {[%emt 0:00:32]} 20. Nxe4 {[%emt 0:03:47]} h6 {[%emt 0:01:13]} 21. Bf6+ {[%emt 0:03:09]} Kh7 {[%emt 0:01:17]} 22. Qf4 {[%emt 0:00:43]} gxf3 {[%emt 0:01:49]} 23. Qg3 {[%emt 0:00:49]} Rg8 {[%emt 0:01:31]} 24. Ng5+ {[%emt 0:00:08]} Rxg5 {[%emt 0:00:17]} 25. Bxg5 {[%emt 0:00:06]} Qf5 {[%emt 0:01:01]} 26. Qf4 {[%emt 0:00:20]} Qg6 {[%emt 0:00:45]} 27. Re7 {[%emt 0:01:29]} Rg8 {[%emt 0:01:49]} 28. Rxf7+ {[%emt 0:01:33]} Rg7 {[%emt 0:00:36]} 29. Rxg7+ {[%emt 0:00:07]} Qxg7 {[%emt 0:00:05]} 30. Qf5+ {[%emt 0:00:12]} 1-0

[Event "SixDays Budapest IM-B 09-2024"]
[Site "Budapest"]
[Date "2024.09.26"]
[Round "4.2"]
[White "Nanditha V"]
[Black "Goldbeck, Lars"]
[Result "0-1"]
[ECO "B12"]
[WhiteElo "1903"]
[BlackElo "2359"]
[Annotator "RC"]
[PlyCount "36"]
[EventDate "2024.09.24"]
[EventType "tourn"]
[EventCountry "HUN"]
[SourceTitle "playchess.com"]
[Source "ChessBase"]
[SourceQuality "1"]
[TimeControl "5400+30"]

1. e4 {[%emt 0:02:13]} c6 {[%emt 0:00:13]} 2. d4 {[%emt 0:00:08]} d5 {[%emt 0:00:04]} 3. e5 {[%emt 0:00:06]} Bf5 {[%emt 0:00:04]} 4. Nf3 {[%emt 0:00:07]} e6 {[%emt 0:00:04]} 5. Be2 {[%emt 0:00:08]} Nd7 {[%emt 0:00:03]} 6. O-O {[%emt 0:00:09]} a5 {[%emt 0:00:03]} 7. a4 {[%emt 0:02:23]} f6 {[%emt 0:00:21]} 8. Re1 {[%emt 0:01:18]} fxe5 {[%emt 0:01:09]} 9. dxe5 {[%emt 0:00:09]} Bc5 {[%emt 0:00:29]} 10. Nd4 {[%emt 0:03:49]} Bxd4 {[%emt 0:08:03]} 11. Qxd4 {[%emt 0:00:07]} Bxc2 {[%emt 0:00:14]} 12. Qg4 {[%emt 0:03:44]} Qe7 {[%emt 0:00:35]} 13. Bg5 {[%emt 0:00:18]} Qf7 {[%emt 0:01:04]} 14. Ra3 {[%emt 0:12:18]} Ne7 {[%emt 0:13:47]} 15. Bd3 {[%emt 0:08:35]} Bxd3 {[%emt 0:01:42]} 16. Rxd3 {[%emt 0:00:14]} Qg6 {[%emt 0:02:41]} 17. Rd4 {[%emt 0:01:30]} Nf5 {[%emt 0:02:51]} 18. Rf4 {[%emt 0:01:27]} h5 {[%emt 0:01:42]} 0-1

[Event "SixDays Budapest IM-B 09-2024"]
[Site "Budapest"]
[Date "2024.09.26"]
[Round "4.3"]
[White "Skytte, Rasmus"]
[Black "Rodgers, Jack"]
[Result "0-1"]
[ECO "B39"]
[WhiteElo "2348"]
[BlackElo "2110"]
[Annotator "RC"]
[PlyCount "116"]
[EventDate "2024.09.24"]
[EventType "tourn"]
[EventCountry "HUN"]
[SourceTitle "playchess.com"]
[Source "ChessBase"]
[SourceQuality "1"]
[TimeControl "5400+30"]

1. e4 {[%emt 0:01:40]} c5 {[%emt 0:00:16]} 2. Nf3 {[%emt 0:00:19]} g6 {[%emt 0:00:10]} 3. d4 {[%emt 0:00:53]} cxd4 {[%emt 0:00:04]} 4. Nxd4 {[%emt 0:00:07]} Bg7 {[%emt 0:00:08]} 5. c4 {[%emt 0:01:02]} Nc6 {[%emt 0:00:05]} 6. Be3 {[%emt 0:00:21]} Nf6 {[%emt 0:00:19]} 7. Nc3 {[%emt 0:01:45]} Ng4 {[%emt 0:00:05]} 8. Qxg4 {[%emt 0:02:25]} Nxd4 {[%emt 0:00:02]} 9. Qd1 {[%emt 0:01:24]} e5 {[%emt 0:00:02]} 10. Bd3 {[%emt 0:00:23]} d6 {[%emt 0:00:04]} 11. O-O {[%emt 0:00:35]} Be6 {[%emt 0:00:59]} 12. a4 {[%emt 0:01:14]} O-O {[%emt 0:00:18]} 13. b3 {[%emt 0:02:10]} a6 {[%emt 0:01:19]} 14. Ra2 {[%emt 0:09:41]} Qa5 {[%emt 0:03:56]} 15. Ne2 {[%emt 0:02:28]} Nc6 {[%emt 0:12:16]} 16. Rd2 {[%emt 0:10:36]} Rfd8 {[%emt 0:02:21]} 17. h3 {[%emt 0:05:05]} Qb4 {[%emt 0:08:54]} 18. Rb2 {[%emt 0:04:17]} Qa5 {[%emt 0:05:24]} 19. Bd2 {[%emt 0:01:59]} Qc7 {[%emt 0:00:50]} 20. Qc1 {[%emt 0:04:10]} Rac8 {[%emt 0:06:22]} 21. Rd1 {[%emt 0:03:10]} f5 {[%emt 0:03:54]} 22. b4 {[%emt 0:06:08]} f4 {[%emt 0:02:06]} 23. f3 {[%emt 0:00:58]} g5 {[%emt 0:01:26]} 24. c5 {[%emt 0:08:19]} Qf7 {[%emt 0:05:11]} 25. b5 {[%emt 0:09:43]} axb5 {[%emt 0:00:23]} 26. axb5 {[%emt 0:02:10]} Nb8 {[%emt 0:05:38]} 27. c6 {[%emt 0:03:02]} bxc6 {[%emt 0:00:07]} 28. b6 {[%emt 0:00:55]} Rd7 {[%emt 0:03:13]} 29. Nc3 {[%emt 0:02:27]} Rb7 {[%emt 0:02:05]} 30. Qa1 {[%emt 0:02:32]} Bf8 {[%emt 0:02:11]} 31. Rc1 {[%emt 0:02:00]} h5 {[%emt 0:00:27]} 32. Kf2 {[%emt 0:01:28]} Be7 {[%emt 0:03:05]} 33. Ke2 {[%emt 0:03:33]} Kg7 {[%emt 0:02:28]} 34. Qa8 {[%emt 0:02:07]} Bd8 {[%emt 0:01:03]} 35. Qa3 {[%emt 0:01:17]} Qd7 {[%emt 0:03:51]} 36. Na4 {[%emt 0:00:38]} c5 {[%emt 0:03:38]} 37. Bb5 {[%emt 0:03:37]} Qe7 {[%emt 0:01:51]} 38. Ba5 {[%emt 0:00:59]} Nc6 {[%emt 0:01:00]} 39. Bxc6 {[%emt 0:00:27]} Rxc6 {[%emt 0:00:02]} 40. Qd3 {[%emt 0:01:04]} c4 {[%emt 0:03:16]} 41. Qc3 {[%emt 0:00:48]} g4 {[%emt 0:03:00]} 42. hxg4 {[%emt 0:00:29]} hxg4 {[%emt 0:00:01]} 43. Qe1 {[%emt 0:00:51]} Qg5 {[%emt 0:01:14]} 44. Qf2 {[%emt 0:00:31]} Qh5 {[%emt 0:04:37]} 45. Kd2 {[%emt 0:00:35]} Bh4 {[%emt 0:02:12]} 46. Qe2 {[%emt 0:00:24]} Be7 {[%emt 0:02:17]} 47. Nc3 {[%emt 0:00:15]} Rc8 {[%emt 0:00:49]} 48. Rbb1 {[%emt 0:00:24]} Ra8 {[%emt 0:01:07]} 49. Ra1 {[%emt 0:00:19]} Bd8 {[%emt 0:00:45]} 50. Nd5 {[%emt 0:00:53]} Bxd5 {[%emt 0:01:48]} 51. exd5 {[%emt 0:00:04]} gxf3 {[%emt 0:02:01]} 52. gxf3 {[%emt 0:00:49]} Bxb6 {[%emt 0:00:48]} 53. Bxb6 {[%emt 0:00:51]} Rxa1 {[%emt 0:00:23]} 54. Rxa1 {[%emt 0:00:07]} Rxb6 {[%emt 0:00:17]} 55. Qxc4 {[%emt 0:00:13]} Rb7 {[%emt 0:03:11]} 56. Qc6 {[%emt 0:00:52]} Qh2+ {[%emt 0:00:18]} 57. Kd3 {[%emt 0:00:06]} Rb3+ {[%emt 0:00:26]} 58. Ke4 {[%emt 0:00:09]} Qh7# {[%emt 0:00:04]} 0-1

[Event "SixDays Budapest IM-B 09-2024"]
[Site "Budapest"]
[Date "2024.09.26"]
[Round "4.4"]
[White "Polyik, Peter"]
[Black "Tippa, Aswath Srisai"]
[Result "0-1"]
[ECO "A13"]
[WhiteElo "2304"]
[BlackElo "1648"]
[Annotator "RC"]
[PlyCount "86"]
[EventDate "2024.09.24"]
[EventType "tourn"]
[EventCountry "HUN"]
[SourceTitle "playchess.com"]
[Source "ChessBase"]
[SourceQuality "1"]
[TimeControl "5400+30"]

1. c4 {[%emt 0:05:45]} e6 {[%emt 0:00:32]} 2. g3 {[%emt 0:00:08]} d5 {[%emt 0:00:19]} 3. Bg2 {[%emt 0:00:05]} d4 {[%emt 0:00:35]} 4. Nf3 {[%emt 0:00:06]} c5 {[%emt 0:00:16]} 5. e3 {[%emt 0:01:57]} Nc6 {[%emt 0:02:04]} 6. exd4 {[%emt 0:02:04]} cxd4 {[%emt 0:00:13]} 7. O-O {[%emt 0:01:38]} Nf6 {[%emt 0:00:13]} 8. d3 {[%emt 0:00:12]} Bd6 {[%emt 0:00:20]} 9. Bg5 {[%emt 0:04:48]} h6 {[%emt 0:00:13]} 10. Bxf6 {[%emt 0:00:05]} Qxf6 {[%emt 0:00:09]} 11. Nbd2 {[%emt 0:00:02]} Qe7 {[%emt 0:00:28]} 12. Rc1 {[%emt 0:02:40]} O-O {[%emt 0:00:37]} 13. a3 {[%emt 0:00:41]} a5 {[%emt 0:00:33]} 14. Nb3 {[%emt 0:00:22]} Rd8 {[%emt 0:07:47]} 15. Re1 {[%emt 0:13:32]} Bc7 {[%emt 0:02:08]} 16. c5 {[%emt 0:14:39]} e5 {[%emt 0:09:21]} 17. Nbd2 {[%emt 0:03:41]} Be6 {[%emt 0:22:19]} 18. Nc4 {[%emt 0:06:42]} Bd5 {[%emt 0:12:28]} 19. Nfd2 {[%emt 0:12:31]} Bxg2 {[%emt 0:06:16]} 20. Kxg2 {[%emt 0:00:05]} Qxc5 {[%emt 0:07:58]} 21. Nxe5 {[%emt 0:01:20]} Qd5+ {[%emt 0:00:27]} 22. Nef3 {[%emt 0:00:14]} a4 {[%emt 0:00:44]} 23. Ne4 {[%emt 0:11:43]} Bb6 {[%emt 0:00:15]} 24. Rc4 {[%emt 0:05:04]} f5 {[%emt 0:00:36]} 25. Ned2 {[%emt 0:00:39]} Ba5 {[%emt 0:00:28]} 26. Kg1 {[%emt 0:07:57]} Bxd2 {[%emt 0:10:29]} 27. Nxd2 {[%emt 0:00:06]} Ne5 {[%emt 0:01:28]} 28. Rc7 {[%emt 0:01:44]} Rdc8 {[%emt 0:04:06]} 29. Qc2 {[%emt 0:01:41]} Re8 {[%emt 0:01:44]} 30. Rc5 {[%emt 0:02:01]} Qd6 {[%emt 0:00:26]} 31. Rc1 {[%emt 0:00:41]} f4 {[%emt 0:01:13]} 32. b4 {[%emt 0:00:34]} Qg6 {[%emt 0:00:40]} 33. Ne4 {[%emt 0:00:34]} f3 {[%emt 0:03:17]} 34. Rc7 {[%emt 0:00:53]} Qg4 {[%emt 0:00:30]} 35. Qd1 {[%emt 0:00:33]} Qh3 {[%emt 0:00:57]} 36. Qf1 {[%emt 0:00:05]} Qxf1+ {[%emt 0:00:09]} 37. Kxf1 {[%emt 0:00:39]} Nxd3 {[%emt 0:00:57]} 38. Rd1 {[%emt 0:00:05]} Rac8 {[%emt 0:00:39]} 39. Rxc8 {[%emt 0:01:03]} Rxc8 {[%emt 0:00:08]} 40. Nd6 {[%emt 0:00:26]} Rc2 {[%emt 0:00:18]} 41. Kg1 {[%emt 0:00:38]} Nb2 {[%emt 0:00:45]} 42. Re1 {[%emt 0:00:35]} d3 {[%emt 0:00:09]} 43. h4 {[%emt 0:00:28]} d2 {[%emt 0:00:12]} 0-1

[Event "SixDays Budapest IM-B 09-2024"]
[Site "Budapest"]
[Date "2024.09.26"]
[Round "4.5"]
[White "Li, Xueyi"]
[Black "Pribelszky, Bence Daniel"]
[Result "0-1"]
[ECO "A40"]
[WhiteElo "2187"]
[BlackElo "2408"]
[Annotator "RC"]
[PlyCount "134"]
[EventDate "2024.09.24"]
[EventType "tourn"]
[EventCountry "HUN"]
[SourceTitle "playchess.com"]
[Source "ChessBase"]
[SourceQuality "1"]
[TimeControl "5400+30"]

1. d4 {[%emt 0:00:04]} g6 {[%emt 0:00:22]} 2. g3 {[%emt 0:00:31]} Bg7 {[%emt 0:00:07]} 3. Bg2 {[%emt 0:00:04]} c5 {[%emt 0:01:16]} 4. dxc5 {[%emt 0:03:29]} Na6 {[%emt 0:01:28]} 5. Nf3 {[%emt 0:05:14]} Nxc5 {[%emt 0:00:10]} 6. O-O {[%emt 0:00:05]} Nf6 {[%emt 0:09:45]} 7. Be3 {[%emt 0:02:35]} b6 {[%emt 0:01:02]} 8. a4 {[%emt 0:06:20]} Bb7 {[%emt 0:01:37]} 9. a5 {[%emt 0:00:51]} O-O {[%emt 0:00:26]} 10. b4 {[%emt 0:08:36]} Ne6 {[%emt 0:12:08]} 11. axb6 {[%emt 0:11:55]} Nd5 {[%emt 0:01:34]} 12. Ra3 {[%emt 0:06:36]} Nxe3 {[%emt 0:01:07]} 13. Rxe3 {[%emt 0:02:06]} axb6 {[%emt 0:00:43]} 14. Ne5 {[%emt 0:03:18]} Bxg2 {[%emt 0:01:00]} 15. Kxg2 {[%emt 0:00:06]} Qc7 {[%emt 0:04:14]} 16. Nf3 {[%emt 0:00:55]} Rfc8 {[%emt 0:01:56]} 17. c3 {[%emt 0:04:04]} Qc6 {[%emt 0:11:52]} 18. Kg1 {[%emt 0:01:36]} Rc7 {[%emt 0:05:48]} 19. Qb3 {[%emt 0:07:24]} Rac8 {[%emt 0:02:48]} 20. Nbd2 {[%emt 0:02:46]} b5 {[%emt 0:07:50]} 21. Rd3 {[%emt 0:03:05]} Bxc3 {[%emt 0:12:06]} 22. Rc1 {[%emt 0:00:59]} Qa8 {[%emt 0:00:05]} 23. Rdxc3 {[%emt 0:02:47]} Rxc3 24. Rxc3 {[%emt 0:00:11]} Qa1+ {[%emt 0:00:11]} 25. Nb1 {[%emt 0:00:04]} Rxc3 {[%emt 0:00:11]} 26. Qxc3 {[%emt 0:00:04]} Qxb1+ {[%emt 0:00:04]} 27. Kg2 {[%emt 0:00:05]} Qe4 {[%emt 0:01:20]} 28. Qd2 {[%emt 0:07:26]} d5 {[%emt 0:03:22]} 29. Kg1 {[%emt 0:01:13]} Kg7 {[%emt 0:01:19]} 30. h4 {[%emt 0:01:26]} f6 {[%emt 0:02:52]} 31. Qa2 {[%emt 0:01:20]} Kf7 {[%emt 0:01:17]} 32. Qd2 {[%emt 0:00:08]} Qc4 {[%emt 0:01:45]} 33. Kg2 {[%emt 0:02:42]} h5 {[%emt 0:03:46]} 34. Kf1 {[%emt 0:03:53]} Ng7 {[%emt 0:01:38]} 35. Nd4 {[%emt 0:01:27]} e5 {[%emt 0:00:20]} 36. Nc2 {[%emt 0:00:59]} Nf5 {[%emt 0:01:21]} 37. Ne3 {[%emt 0:02:15]} Nxe3+ {[%emt 0:00:17]} 38. Qxe3 {[%emt 0:00:02]} Qxb4 {[%emt 0:00:42]} 39. Qb6 {[%emt 0:00:55]} Qb1+ {[%emt 0:01:49]} 40. Kg2 {[%emt 0:00:04]} Qe4+ {[%emt 0:00:04]} 41. Kg1 {[%emt 0:00:11]} Qxe2 {[%emt 0:01:52]} 42. Qd6 {[%emt 0:00:25]} Qd1+ {[%emt 0:04:04]} 43. Kg2 {[%emt 0:00:24]} g5 {[%emt 0:00:05]} 44. hxg5 {[%emt 0:03:34]} fxg5 {[%emt 0:00:18]} 45. Qxe5 {[%emt 0:01:47]} Qd3 {[%emt 0:04:02]} 46. Qxg5 {[%emt 0:00:10]} Qe4+ {[%emt 0:00:10]} 47. Kg1 {[%emt 0:00:54]} b4 {[%emt 0:00:35]} 48. Qxh5+ {[%emt 0:00:51]} Ke7 {[%emt 0:00:16]} 49. Qg5+ {[%emt 0:00:23]} Kd7 {[%emt 0:01:01]} 50. g4 {[%emt 0:03:45]} b3 {[%emt 0:00:06]} 51. Qg7+ {[%emt 0:00:03]} Kc6 {[%emt 0:00:27]} 52. Qc3+ {[%emt 0:00:17]} Qc4 {[%emt 0:00:03]} 53. Qf6+ {[%emt 0:00:04]} Kb5 {[%emt 0:00:13]} 54. Qg7 {[%emt 0:02:09]} Qc1+ {[%emt 0:02:05]} 55. Kg2 {[%emt 0:00:08]} b2 {[%emt 0:00:15]} 56. Qb7+ {[%emt 0:00:06]} Kc5 {[%emt 0:00:24]} 57. Qc7+ {[%emt 0:01:26]} Kd4 {[%emt 0:00:26]} 58. Qb6+ {[%emt 0:00:21]} Ke5 {[%emt 0:00:29]} 59. Qb8+ {[%emt 0:00:07]} Ke4 {[%emt 0:00:33]} 60. Qb4+ {[%emt 0:02:32]} d4 {[%emt 0:00:18]} 61. Qb7+ {[%emt 0:00:20]} Kd3 {[%emt 0:00:23]} 62. Qf3+ {[%emt 0:00:23]} Kd2 {[%emt 0:00:50]} 63. Qf4+ {[%emt 0:00:12]} Kc3 {[%emt 0:00:12]} 64. Qc7+ {[%emt 0:00:53]} Kd3 {[%emt 0:00:42]} 65. Qh7+ {[%emt 0:00:09]} Kd2 {[%emt 0:00:17]} 66. Qh6+ {[%emt 0:00:05]} Kd1 {[%emt 0:00:07]} 67. Qh1+ {[%emt 0:01:27]} Ke2 {[%emt 0:00:05]} 0-1